[Event "Late-Titled-Tuesday-Blitz-September-26-2023"]
[Site "Chess.com"]
[Date "2023.09.26"]
[Round "4"]
[White "Giorno"]
[Black "laskakid"]
[Result "1/2-1/2"]
[WhiteElo "2495"]
[BlackElo "2326"]
[TimeControl "180+1"]
[EndTime "14:38:25 PDT"]
[Termination "Game drawn by repetition"]

1. Nf3 {[%clk 0:03:00.9]} 1... Nf6 {[%clk 0:02:59.5]} 2. g3 {[%clk 0:03:01.8]}
2... g6 {[%clk 0:02:59.7]} 3. Bg2 {[%clk 0:03:02.5]} 3... Bg7 {[%clk 0:03:00]}
4. O-O {[%clk 0:03:03.4]} 4... O-O {[%clk 0:03:00.2]} 5. b3 {[%clk 0:03:02.2]}
5... c5 {[%clk 0:02:55]} 6. Bb2 {[%clk 0:03:02]} 6... Nc6 {[%clk 0:02:55.2]} 7.
c4 {[%clk 0:02:58.8]} 7... d5 {[%clk 0:02:43.4]} 8. cxd5 {[%clk 0:02:58.1]} 8...
Nxd5 {[%clk 0:02:43.7]} 9. Bxg7 {[%clk 0:02:57.6]} 9... Kxg7 {[%clk 0:02:44.1]}
10. Qc1 {[%clk 0:02:57.9]} 10... Qd6 {[%clk 0:02:36.3]} 11. Qb2+ {[%clk
0:02:54.5]} 11... f6 {[%clk 0:02:32.3]} 12. Nc3 {[%clk 0:02:54.1]} 12... e5
{[%clk 0:02:24.6]} 13. Rac1 {[%clk 0:02:43.1]} 13... Nxc3 {[%clk 0:01:59.5]} 14.
dxc3 {[%clk 0:02:39.1]} 14... Be6 {[%clk 0:01:51.1]} 15. Rfd1 {[%clk 0:02:38.7]}
15... Qe7 {[%clk 0:01:51.2]} 16. Nd2 {[%clk 0:02:38.9]} 16... Rac8 {[%clk
0:01:46.8]} 17. h3 {[%clk 0:02:32]} 17... Rfd8 {[%clk 0:01:45.7]} 18. e3 {[%clk
0:02:27.6]} 18... Rd7 {[%clk 0:01:35.5]} 19. Ne4 {[%clk 0:02:24.2]} 19... b6
{[%clk 0:01:16.7]} 20. Qe2 {[%clk 0:02:16.1]} 20... Nd8 {[%clk 0:01:13.3]} 21.
Rxd7 {[%clk 0:02:14.5]} 21... Qxd7 {[%clk 0:01:11.8]} 22. Rd1 {[%clk 0:02:14.8]}
22... Qe7 {[%clk 0:01:08.1]} 23. Qb5 {[%clk 0:02:06]} 23... Nf7 {[%clk
0:01:06.2]} 24. Qa6 {[%clk 0:01:46.5]} 24... g5 {[%clk 0:01:01.4]} 25. c4 {[%clk
0:01:41]} 25... h5 {[%clk 0:00:59.2]} 26. Nc3 {[%clk 0:01:40.4]} 26... h4 {[%clk
0:00:43.1]} 27. g4 {[%clk 0:01:39.8]} 27... Rd8 {[%clk 0:00:34.4]} 28. Rxd8
{[%clk 0:01:38.2]} 28... Nxd8 {[%clk 0:00:33.7]} 29. Nb5 {[%clk 0:01:35.2]}
29... Qd7 {[%clk 0:00:27.8]} 30. Qxa7 {[%clk 0:01:33.7]} 30... Nf7 {[%clk
0:00:22.1]} 31. Qc7 {[%clk 0:01:27.1]} 31... Qd1+ {[%clk 0:00:20.1]} 32. Bf1
{[%clk 0:01:23.2]} 32... Bxg4 {[%clk 0:00:17.2]} 33. hxg4 {[%clk 0:00:59.1]}
33... Qxg4+ {[%clk 0:00:16.7]} 34. Kh2 {[%clk 0:00:44.4]} 34... Qf3 {[%clk
0:00:16.9]} 35. Kg1 {[%clk 0:00:19.1]} 35... Qg4+ {[%clk 0:00:17.1]} 36. Bg2
{[%clk 0:00:18.6]} 36... h3 {[%clk 0:00:16.8]} 37. Qb7 {[%clk 0:00:17.5]} 37...
hxg2 {[%clk 0:00:14.7]} 38. Qxg2 {[%clk 0:00:18.4]} 38... Qd1+ {[%clk
0:00:14.7]} 39. Kh2 {[%clk 0:00:17.8]} 39... Qh5+ {[%clk 0:00:14.4]} 40. Kg1
{[%clk 0:00:15.6]} 40... Qd1+ {[%clk 0:00:13.6]} 41. Qf1 {[%clk 0:00:15.6]}
41... Qg4+ {[%clk 0:00:13.4]} 42. Kh1 {[%clk 0:00:14.8]} 42... Qh5+ {[%clk
0:00:13.1]} 43. Kg1 {[%clk 0:00:12.3]} 43... Qg4+ {[%clk 0:00:13.3]} 44. Qg2
{[%clk 0:00:12.7]} 44... Qd1+ {[%clk 0:00:13.3]} 1/2-1/2

[Event "Late-Titled-Tuesday-Blitz-September-26-2023"]
[Site "Chess.com"]
[Date "2023.09.26"]
[Round "4"]
[White "GothamChess"]
[Black "jcibarra"]
[Result "0-1"]
[WhiteElo "2713"]
[BlackElo "2947"]
[TimeControl "180+1"]
[EndTime "14:38:26 PDT"]
[Termination "jcibarra won by resignation"]

1. e4 {[%clk 0:03:00.4]} 1... c5 {[%clk 0:02:59.5]} 2. Nc3 {[%clk 0:03:00.8]}
2... Nc6 {[%clk 0:02:59.6]} 3. Bb5 {[%clk 0:03:00.6]} 3... Nd4 {[%clk
0:02:58.1]} 4. Nf3 {[%clk 0:03:00.7]} 4... e6 {[%clk 0:02:57.9]} 5. O-O {[%clk
0:03:00.5]} 5... a6 {[%clk 0:02:55.4]} 6. Bd3 {[%clk 0:03:00.7]} 6... Nc6 {[%clk
0:02:55.5]} 7. Nd5 {[%clk 0:02:59.7]} 7... d6 {[%clk 0:02:47.5]} 8. Ne3 {[%clk
0:02:55.5]} 8... Nf6 {[%clk 0:02:42.9]} 9. c3 {[%clk 0:02:53.3]} 9... d5 {[%clk
0:02:42.7]} 10. exd5 {[%clk 0:02:50]} 10... Nxd5 {[%clk 0:02:35.8]} 11. Nxd5
{[%clk 0:02:42.2]} 11... Qxd5 {[%clk 0:02:36.1]} 12. Qe2 {[%clk 0:02:28.5]}
12... Be7 {[%clk 0:02:33.1]} 13. Be4 {[%clk 0:02:27.9]} 13... Qd6 {[%clk
0:02:33.6]} 14. d4 {[%clk 0:02:22.5]} 14... cxd4 {[%clk 0:02:32.9]} 15. Bxc6+
{[%clk 0:02:17.2]} 15... Qxc6 {[%clk 0:02:29.3]} 16. Nxd4 {[%clk 0:02:15.9]}
16... Qc7 {[%clk 0:02:23.5]} 17. Re1 {[%clk 0:01:56.2]} 17... O-O {[%clk
0:02:21.6]} 18. Qf3 {[%clk 0:01:49.9]} 18... Bd6 {[%clk 0:02:17.4]} 19. h3
{[%clk 0:01:40.2]} 19... b5 {[%clk 0:02:09.8]} 20. Bg5 {[%clk 0:00:46]} 20...
Bb7 {[%clk 0:02:06.5]} 21. Qg4 {[%clk 0:00:45.4]} 21... Kh8 {[%clk 0:01:59.6]}
22. Rad1 {[%clk 0:00:33.3]} 22... Rae8 {[%clk 0:01:52.3]} 23. Rd3 {[%clk
0:00:28.9]} 23... f6 {[%clk 0:01:30.8]} 24. Bc1 {[%clk 0:00:23.7]} 24... f5
{[%clk 0:00:59.5]} 25. Qh4 {[%clk 0:00:20.6]} 25... e5 {[%clk 0:00:48.6]} 26.
Nb3 {[%clk 0:00:14.2]} 26... e4 {[%clk 0:00:39.9]} 27. Rdd1 {[%clk 0:00:10.4]}
27... f4 {[%clk 0:00:32]} 28. Nd4 {[%clk 0:00:10.8]} 28... Bc8 {[%clk
0:00:26.2]} 29. Qg5 {[%clk 0:00:07.3]} 29... Re5 {[%clk 0:00:23.8]} 30. Qh4
{[%clk 0:00:03.7]} 30... Be7 {[%clk 0:00:19.5]} 31. Qxf4 {[%clk 0:00:02.1]}
31... Rxf4 {[%clk 0:00:17.5]} 32. Bxf4 {[%clk 0:00:03]} 32... Bd6 {[%clk
0:00:15.2]} 33. Nf3 {[%clk 0:00:02.7]} 33... exf3 {[%clk 0:00:11.4]} 34. Bxe5
{[%clk 0:00:02.9]} 34... Bxe5 {[%clk 0:00:11]} 35. Rxe5 {[%clk 0:00:03.6]} 35...
h6 {[%clk 0:00:09.9]} 36. Re8+ {[%clk 0:00:02.4]} 36... Kh7 {[%clk 0:00:10.5]}
37. Re3 {[%clk 0:00:02.5]} 37... fxg2 {[%clk 0:00:09.3]} 38. Kxg2 {[%clk
0:00:03.3]} 38... Bb7+ {[%clk 0:00:09.5]} 39. Kg1 {[%clk 0:00:03.1]} 39... Qf7
{[%clk 0:00:10]} 40. Rd4 {[%clk 0:00:02.7]} 40... Qxa2 {[%clk 0:00:09.3]} 41. b4
{[%clk 0:00:02.4]} 41... Qb1+ {[%clk 0:00:08.5]} 42. Kh2 {[%clk 0:00:03]} 42...
Qh1+ {[%clk 0:00:08.8]} 43. Kg3 {[%clk 0:00:03.4]} 43... Qg2+ {[%clk 0:00:09]}
0-1

[Event "Late-Titled-Tuesday-Blitz-September-26-2023"]
[Site "Chess.com"]
[Date "2023.09.26"]
[Round "4"]
[White "MeisterJabo"]
[Black "IMRosen"]
[Result "0-1"]
[WhiteElo "2321"]
[BlackElo "2554"]
[TimeControl "180+1"]
[EndTime "14:38:31 PDT"]
[Termination "IMRosen won by checkmate"]

1. e4 {[%clk 0:02:59.6]} 1... c5 {[%clk 0:02:59.8]} 2. Nf3 {[%clk 0:02:58.5]}
2... Nc6 {[%clk 0:03:00.5]} 3. d4 {[%clk 0:02:53.9]} 3... cxd4 {[%clk
0:03:01.4]} 4. Nxd4 {[%clk 0:02:54.5]} 4... g6 {[%clk 0:03:01.9]} 5. c4 {[%clk
0:02:44.2]} 5... Nf6 {[%clk 0:03:01.3]} 6. Nc3 {[%clk 0:02:43.8]} 6... d6 {[%clk
0:03:01.4]} 7. Be2 {[%clk 0:02:43.9]} 7... Nxd4 {[%clk 0:03:01.2]} 8. Qxd4
{[%clk 0:02:43.5]} 8... Bg7 {[%clk 0:03:02]} 9. Be3 {[%clk 0:02:43.7]} 9... O-O
{[%clk 0:03:02.6]} 10. Qd2 {[%clk 0:02:44.3]} 10... a5 {[%clk 0:03:03.1]} 11. f3
{[%clk 0:02:41.3]} 11... a4 {[%clk 0:03:02.7]} 12. g4 {[%clk 0:02:41.7]} 12...
Be6 {[%clk 0:02:58.7]} 13. h4 {[%clk 0:02:40.5]} 13... Qa5 {[%clk 0:02:55.5]}
14. h5 {[%clk 0:02:29.4]} 14... a3 {[%clk 0:02:53.3]} 15. Bd4 {[%clk 0:01:58.7]}
15... axb2 {[%clk 0:01:50.2]} 16. Qxb2 {[%clk 0:01:57.7]} 16... Rfc8 {[%clk
0:01:50.9]} 17. hxg6 {[%clk 0:01:44.1]} 17... hxg6 {[%clk 0:01:48.4]} 18. Kf1
{[%clk 0:01:22.1]} 18... Bxc4 {[%clk 0:01:46.1]} 19. Nd5 {[%clk 0:00:53.7]}
19... Bxe2+ {[%clk 0:01:28.7]} 20. Kxe2 {[%clk 0:00:54.6]} 20... Nxd5 {[%clk
0:01:08.2]} 21. Bxg7 {[%clk 0:00:47.6]} 21... Nf4+ {[%clk 0:01:00]} 22. Ke3
{[%clk 0:00:39.6]} 22... f6 {[%clk 0:00:32.5]} 23. Bxf6 {[%clk 0:00:31.6]} 23...
exf6 {[%clk 0:00:14.4]} 24. Kxf4 {[%clk 0:00:28.8]} 24... Qe5+ {[%clk
0:00:07.8]} 25. Qxe5 {[%clk 0:00:27]} 25... dxe5+ {[%clk 0:00:08.7]} 26. Kg3
{[%clk 0:00:27.4]} 26... Ra3 {[%clk 0:00:07.2]} 27. Rac1 {[%clk 0:00:18.4]}
27... Rac3 {[%clk 0:00:02.2]} 28. Rxc3 {[%clk 0:00:17.7]} 28... Rxc3 {[%clk
0:00:03.1]} 29. Rb1 {[%clk 0:00:17.9]} 29... Rc7 {[%clk 0:00:03]} 30. Rb6 {[%clk
0:00:18.5]} 30... Kf7 {[%clk 0:00:03.5]} 31. g5 {[%clk 0:00:17.4]} 31... f5
{[%clk 0:00:02.1]} 32. exf5 {[%clk 0:00:16.4]} 32... gxf5 {[%clk 0:00:03]} 33.
Kh4 {[%clk 0:00:17.2]} 33... f4 {[%clk 0:00:03]} 34. Kg4 {[%clk 0:00:17.3]}
34... Re7 {[%clk 0:00:02]} 35. Kf5 {[%clk 0:00:17.6]} 35... Kg7 {[%clk
0:00:02.3]} 36. Rb5 {[%clk 0:00:10.6]} 36... e4 {[%clk 0:00:02.6]} 37. fxe4
{[%clk 0:00:09.8]} 37... f3 {[%clk 0:00:03.1]} 38. Rb2 {[%clk 0:00:08.8]} 38...
f2 {[%clk 0:00:03.7]} 39. g6 {[%clk 0:00:02.6]} 39... f1=Q+ {[%clk 0:00:03.5]}
40. Kg5 {[%clk 0:00:03.2]} 40... Qc1+ {[%clk 0:00:03.6]} 41. Kf5 {[%clk
0:00:03.2]} 41... Qxb2 {[%clk 0:00:04.2]} 42. e5 {[%clk 0:00:03.7]} 42... Qxe5+
{[%clk 0:00:04.7]} 43. Kg4 {[%clk 0:00:04.1]} 43... Rd7 {[%clk 0:00:05.6]} 44.
a4 {[%clk 0:00:04.2]} 44... Rd4+ {[%clk 0:00:06.1]} 45. Kf3 {[%clk 0:00:04.2]}
45... Qc5 {[%clk 0:00:06.4]} 46. Kf2 {[%clk 0:00:05.1]} 46... Qc3 {[%clk
0:00:06.6]} 47. Kf1 {[%clk 0:00:06]} 47... Rd2 {[%clk 0:00:07.3]} 48. a5 {[%clk
0:00:06.9]} 48... Qc1# {[%clk 0:00:08.2]} 0-1

[Event "Late-Titled-Tuesday-Blitz-September-26-2023"]
[Site "Chess.com"]
[Date "2023.09.26"]
[Round "4"]
[White "alexrustemov"]
[Black "valemava"]
[Result "1-0"]
[WhiteElo "2871"]
[BlackElo "2402"]
[TimeControl "180+1"]
[EndTime "14:38:31 PDT"]
[Termination "alexrustemov won by checkmate"]

1. d4 {[%clk 0:03:00.9]} 1... c6 {[%clk 0:02:59.6]} 2. c4 {[%clk 0:03:00.2]}
2... b5 {[%clk 0:02:59.8]} 3. c5 {[%clk 0:02:40.6]} 3... d5 {[%clk 0:02:58.4]}
4. Bf4 {[%clk 0:02:36.8]} 4... Bf5 {[%clk 0:02:54.8]} 5. e3 {[%clk 0:02:36]}
5... e6 {[%clk 0:02:54.7]} 6. Nf3 {[%clk 0:02:35]} 6... Nf6 {[%clk 0:02:54.2]}
7. h3 {[%clk 0:02:25.7]} 7... Nbd7 {[%clk 0:02:53.5]} 8. Be2 {[%clk 0:02:20.6]}
8... h6 {[%clk 0:02:52.7]} 9. O-O {[%clk 0:02:20.1]} 9... Be7 {[%clk 0:02:52.6]}
10. a4 {[%clk 0:01:56.1]} 10... a6 {[%clk 0:02:51.9]} 11. b4 {[%clk 0:01:50]}
11... g5 {[%clk 0:02:45.6]} 12. Bg3 {[%clk 0:01:47.6]} 12... Ne4 {[%clk
0:02:45]} 13. Bh2 {[%clk 0:01:45.4]} 13... Bg6 {[%clk 0:02:34.8]} 14. Ne5 {[%clk
0:01:44]} 14... Nxe5 {[%clk 0:02:33.2]} 15. Bxe5 {[%clk 0:01:44.6]} 15... f6
{[%clk 0:02:32.1]} 16. Bh2 {[%clk 0:01:43.8]} 16... f5 {[%clk 0:02:29.7]} 17. f3
{[%clk 0:01:38.2]} 17... Nf6 {[%clk 0:02:28]} 18. Nc3 {[%clk 0:01:36.9]} 18...
O-O {[%clk 0:02:27]} 19. Qd2 {[%clk 0:01:34.1]} 19... Kh7 {[%clk 0:02:25.9]} 20.
axb5 {[%clk 0:01:22.9]} 20... axb5 {[%clk 0:02:25.3]} 21. Ra2 {[%clk 0:01:21.2]}
21... Qd7 {[%clk 0:02:14.8]} 22. Rfa1 {[%clk 0:01:20.2]} 22... Qb7 {[%clk
0:02:14.5]} 23. Be5 {[%clk 0:01:09.1]} 23... Nd7 {[%clk 0:02:13.5]} 24. Bg3
{[%clk 0:01:08.1]} 24... Bf6 {[%clk 0:02:12.4]} 25. Bd6 {[%clk 0:01:03.1]} 25...
Rfe8 {[%clk 0:02:11.8]} 26. f4 {[%clk 0:01:03.3]} 26... Bg7 {[%clk 0:01:48.4]}
27. Kh2 {[%clk 0:01:01.6]} 27... Nf6 {[%clk 0:01:47.8]} 28. Bd3 {[%clk
0:00:58.8]} 28... Ne4 {[%clk 0:01:47.1]} 29. Bxe4 {[%clk 0:00:57.4]} 29... fxe4
{[%clk 0:01:48]} 30. fxg5 {[%clk 0:00:51.5]} 30... hxg5 {[%clk 0:01:47.3]} 31.
Qf2 {[%clk 0:00:51.5]} 31... Bf5 {[%clk 0:01:31.7]} 32. Qg3 {[%clk 0:00:47.4]}
32... Bf6 {[%clk 0:01:30.3]} 33. Be5 {[%clk 0:00:47.1]} 33... Be7 {[%clk
0:01:27.8]} 34. Nd1 {[%clk 0:00:36.5]} 34... Rxa2 {[%clk 0:01:27.1]} 35. Rxa2
{[%clk 0:00:35.7]} 35... Ra8 {[%clk 0:01:27.2]} 36. Rxa8 {[%clk 0:00:29.9]}
36... Qxa8 {[%clk 0:01:28.1]} 37. h4 {[%clk 0:00:27.7]} 37... Qa1 {[%clk
0:01:23.1]} 38. Nf2 {[%clk 0:00:27.2]} 38... Qe1 {[%clk 0:00:55]} 39. hxg5
{[%clk 0:00:27.1]} 39... Kg6 {[%clk 0:00:52.2]} 40. Bf4 {[%clk 0:00:26.4]} 40...
Qe2 {[%clk 0:00:51.1]} 41. Qh4 {[%clk 0:00:18.5]} 41... Qh5 {[%clk 0:00:49.9]}
42. g3 {[%clk 0:00:14.7]} 42... Bf8 {[%clk 0:00:43]} 43. Kg1 {[%clk 0:00:13.7]}
43... Qe2 {[%clk 0:00:41]} 44. Qh8 {[%clk 0:00:12.6]} 44... Bg7 {[%clk
0:00:35.9]} 45. Qe8+ {[%clk 0:00:12.4]} 45... Kh7 {[%clk 0:00:34.6]} 46. Qf7
{[%clk 0:00:10.4]} 46... Qe1+ {[%clk 0:00:20.5]} 47. Kg2 {[%clk 0:00:09.9]}
47... Bg6 {[%clk 0:00:20.7]} 48. Qe7 {[%clk 0:00:09]} 48... Qxb4 {[%clk
0:00:20.8]} 49. Be5 {[%clk 0:00:08.8]} 49... Qe1 {[%clk 0:00:13.7]} 50. Qxg7#
{[%clk 0:00:08]} 1-0

[Event "Late-Titled-Tuesday-Blitz-September-26-2023"]
[Site "Chess.com"]
[Date "2023.09.26"]
[Round "4"]
[White "Chessdude1987"]
[Black "stregachess"]
[Result "1/2-1/2"]
[WhiteElo "2424"]
[BlackElo "2093"]
[TimeControl "180+1"]
[EndTime "14:38:36 PDT"]
[Termination "Game drawn by repetition"]

1. e4 {[%clk 0:03:00.9]} 1... c5 {[%clk 0:02:59.2]} 2. Nf3 {[%clk 0:03:00]} 2...
d6 {[%clk 0:02:59.4]} 3. Bc4 {[%clk 0:02:59.8]} 3... g6 {[%clk 0:02:58.3]} 4.
O-O {[%clk 0:02:59.1]} 4... Bg7 {[%clk 0:02:58.1]} 5. Re1 {[%clk 0:02:59.1]}
5... Nf6 {[%clk 0:02:57.7]} 6. c3 {[%clk 0:02:59.2]} 6... O-O {[%clk 0:02:54.8]}
7. d4 {[%clk 0:02:59.1]} 7... cxd4 {[%clk 0:02:53.3]} 8. cxd4 {[%clk 0:02:59]}
8... a6 {[%clk 0:02:53.5]} 9. Bb3 {[%clk 0:02:56.9]} 9... Nc6 {[%clk 0:02:51.9]}
10. h3 {[%clk 0:02:56]} 10... Bd7 {[%clk 0:02:50]} 11. Nc3 {[%clk 0:02:55.9]}
11... Rc8 {[%clk 0:02:50.2]} 12. e5 {[%clk 0:02:42.3]} 12... Ne8 {[%clk
0:02:49.3]} 13. Bf4 {[%clk 0:02:20.2]} 13... Na5 {[%clk 0:02:38.6]} 14. Bd5
{[%clk 0:01:53.2]} 14... e6 {[%clk 0:02:20.8]} 15. Be4 {[%clk 0:01:53]} 15...
Nc4 {[%clk 0:02:13.9]} 16. Qe2 {[%clk 0:01:40.5]} 16... dxe5 {[%clk 0:02:06]}
17. dxe5 {[%clk 0:01:38.5]} 17... b5 {[%clk 0:01:58.7]} 18. Rad1 {[%clk
0:01:28.2]} 18... Qc7 {[%clk 0:01:58.6]} 19. Rd3 {[%clk 0:01:03.8]} 19... Bc6
{[%clk 0:01:54.7]} 20. Bxc6 {[%clk 0:00:57.7]} 20... Qxc6 {[%clk 0:01:53.8]} 21.
Ne4 {[%clk 0:00:58]} 21... Nc7 {[%clk 0:01:44.1]} 22. b3 {[%clk 0:00:56.6]}
22... Na5 {[%clk 0:01:34.3]} 23. Rd6 {[%clk 0:00:53.5]} 23... Qa8 {[%clk
0:01:28.3]} 24. Nf6+ {[%clk 0:00:49.5]} 24... Kh8 {[%clk 0:01:27.5]} 25. Nd7
{[%clk 0:00:46.2]} 25... Nd5 {[%clk 0:01:26.2]} 26. Bd2 {[%clk 0:00:40.8]} 26...
Nb7 {[%clk 0:01:24.2]} 27. Rxd5 {[%clk 0:00:31.7]} 27... exd5 {[%clk 0:01:22]}
28. Nxf8 {[%clk 0:00:32]} 28... Rxf8 {[%clk 0:01:19.3]} 29. Qd3 {[%clk
0:00:27.3]} 29... Nc5 {[%clk 0:01:17.9]} 30. Qd4 {[%clk 0:00:27.4]} 30... Ne4
{[%clk 0:01:17.4]} 31. Bb4 {[%clk 0:00:26.7]} 31... Rd8 {[%clk 0:01:16.6]} 32.
Rd1 {[%clk 0:00:26.3]} 32... Qb8 {[%clk 0:01:15.1]} 33. Be7 {[%clk 0:00:22.8]}
33... Re8 {[%clk 0:01:08.8]} 34. Bf6 {[%clk 0:00:20.6]} 34... b4 {[%clk
0:00:35.5]} 35. Bxg7+ {[%clk 0:00:19.9]} 35... Kxg7 {[%clk 0:00:36.4]} 36. Qxd5
{[%clk 0:00:19.9]} 36... Nc3 {[%clk 0:00:34.9]} 37. Qd4 {[%clk 0:00:16.8]} 37...
Nxd1 {[%clk 0:00:34.1]} 38. e6+ {[%clk 0:00:16]} 38... Kg8 {[%clk 0:00:27.8]}
39. exf7+ {[%clk 0:00:14.7]} 39... Kxf7 {[%clk 0:00:28.1]} 40. Ng5+ {[%clk
0:00:14.4]} 40... Ke7 {[%clk 0:00:21.3]} 41. Qxd1 {[%clk 0:00:13.8]} 41... Qe5
{[%clk 0:00:20.5]} 42. h4 {[%clk 0:00:12.9]} 42... Rd8 {[%clk 0:00:19.5]} 43.
Qc1 {[%clk 0:00:11.6]} 43... h6 {[%clk 0:00:17.3]} 44. Nf3 {[%clk 0:00:10.9]}
44... Qd6 {[%clk 0:00:17.3]} 45. Qxh6 {[%clk 0:00:10]} 45... Qd1+ {[%clk
0:00:16.7]} 46. Kh2 {[%clk 0:00:10.3]} 46... Qd6+ {[%clk 0:00:17.2]} 47. Kh3
{[%clk 0:00:10.1]} 47... Rf8 {[%clk 0:00:16.3]} 48. Qg7+ {[%clk 0:00:09.5]}
48... Rf7 {[%clk 0:00:15.6]} 49. Qh6 {[%clk 0:00:09]} 49... Qe6+ {[%clk
0:00:14.9]} 50. Kh2 {[%clk 0:00:08.8]} 50... Qd6+ {[%clk 0:00:14.8]} 51. Kg1
{[%clk 0:00:07.4]} 51... Qd1+ {[%clk 0:00:14.4]} 52. Kh2 {[%clk 0:00:07.8]}
52... Qd6+ {[%clk 0:00:14.5]} 53. Kh3 {[%clk 0:00:07.9]} 53... Qe6+ {[%clk
0:00:14.6]} 54. Kh2 {[%clk 0:00:07.9]} 54... Qd6+ {[%clk 0:00:14.8]} 1/2-1/2

[Event "Late-Titled-Tuesday-Blitz-September-26-2023"]
[Site "Chess.com"]
[Date "2023.09.26"]
[Round "4"]
[White "eCztery"]
[Black "Ermito2020"]
[Result "1-0"]
[WhiteElo "2427"]
[BlackElo "2603"]
[TimeControl "180+1"]
[EndTime "14:38:39 PDT"]
[Termination "eCztery won by resignation"]

1. e4 {[%clk 0:02:56.7]} 1... e6 {[%clk 0:03:00.2]} 2. Nc3 {[%clk 0:02:51.8]}
2... d5 {[%clk 0:03:00.1]} 3. d4 {[%clk 0:02:51.8]} 3... Nf6 {[%clk 0:02:59.3]}
4. Bg5 {[%clk 0:02:51.3]} 4... Bb4 {[%clk 0:02:57.7]} 5. e5 {[%clk 0:02:44.7]}
5... h6 {[%clk 0:02:58]} 6. Be3 {[%clk 0:02:28.9]} 6... Ne4 {[%clk 0:02:57.7]}
7. Qg4 {[%clk 0:02:17]} 7... Kf8 {[%clk 0:02:52.6]} 8. Ne2 {[%clk 0:02:02.9]}
8... c5 {[%clk 0:02:49]} 9. dxc5 {[%clk 0:01:54.4]} 9... Nc6 {[%clk 0:02:46]}
10. a3 {[%clk 0:01:43.4]} 10... Qa5 {[%clk 0:02:24.2]} 11. Rd1 {[%clk
0:01:07.7]} 11... Bxc3+ {[%clk 0:01:58.6]} 12. Nxc3 {[%clk 0:01:03]} 12... Nxe5
{[%clk 0:01:58.2]} 13. Qf4 {[%clk 0:00:42.3]} 13... Ng6 {[%clk 0:01:58.5]} 14.
Qf3 {[%clk 0:00:33.5]} 14... Nxc3 {[%clk 0:01:46.9]} 15. Bd2 {[%clk 0:00:31.7]}
15... d4 {[%clk 0:01:37.3]} 16. bxc3 {[%clk 0:00:28.7]} 16... dxc3 {[%clk
0:01:38.2]} 17. Bxc3 {[%clk 0:00:28.3]} 17... Qc7 {[%clk 0:01:38.2]} 18. Bb5
{[%clk 0:00:21.6]} 18... e5 {[%clk 0:01:29.3]} 19. O-O {[%clk 0:00:14.1]} 19...
Be6 {[%clk 0:01:29.3]} 20. Bd3 {[%clk 0:00:11.4]} 20... Nf4 {[%clk 0:01:24]} 21.
Rfe1 {[%clk 0:00:09.6]} 21... f6 {[%clk 0:01:20.7]} 22. g3 {[%clk 0:00:08.8]}
22... Nxd3 {[%clk 0:01:18.4]} 23. Rxd3 {[%clk 0:00:08.2]} 23... Kg8 {[%clk
0:01:15.1]} 24. Rd6 {[%clk 0:00:07.6]} 24... Bf7 {[%clk 0:01:15.3]} 25. Red1
{[%clk 0:00:07.5]} 25... Rc8 {[%clk 0:00:54.2]} 26. Rd7 {[%clk 0:00:05.5]} 26...
Qxc5 {[%clk 0:00:54.6]} 27. Qf5 {[%clk 0:00:04.7]} 27... Rf8 {[%clk 0:00:46.7]}
28. Bb4 {[%clk 0:00:04.3]} 28... Qc6 {[%clk 0:00:25.2]} 29. Bxf8 {[%clk
0:00:04.8]} 29... Kxf8 {[%clk 0:00:25.4]} 30. Rd8+ {[%clk 0:00:04.7]} 30... Be8
{[%clk 0:00:25.9]} 31. Qg6 {[%clk 0:00:04.6]} 31... Qe6 {[%clk 0:00:19.9]} 32.
R1d6 {[%clk 0:00:03.8]} 32... Qe7 {[%clk 0:00:17.9]} 33. h4 {[%clk 0:00:02.9]}
33... h5 {[%clk 0:00:17.9]} 34. Qe4 {[%clk 0:00:01.5]} 34... Rh6 {[%clk
0:00:14.7]} 35. Qd5 {[%clk 0:00:01.9]} 35... Rh8 {[%clk 0:00:13.4]} 36. R6d7
{[%clk 0:00:02.2]} 36... g6 {[%clk 0:00:09.5]} 37. Rxe7 {[%clk 0:00:02.2]} 37...
Kxe7 {[%clk 0:00:10.4]} 38. Qd6+ {[%clk 0:00:02.8]} 38... Kf7 {[%clk 0:00:11.3]}
39. Rc8 {[%clk 0:00:02.8]} 39... Kg7 {[%clk 0:00:11.3]} 40. Rc7+ {[%clk
0:00:03.7]} 40... Bf7 {[%clk 0:00:11.8]} 41. Qe7 {[%clk 0:00:04.6]} 41... Rf8
{[%clk 0:00:12.2]} 42. Rxb7 {[%clk 0:00:05.3]} 1-0